[Event "Late-Titled-Tuesday-Blitz-October-10-2023"]
[Site "Chess.com"]
[Date "2023.10.10"]
[Round "3"]
[White "Sofiia_Hryzlova"]
[Black "karinachess1"]
[Result "0-1"]
[WhiteElo "2303"]
[BlackElo "2591"]
[TimeControl "180+1"]
[EndTime "14:26:41 PDT"]
[Termination "karinachess1 won by resignation"]

1. d4 {[%clk 0:03:00.9]} 1... Nf6 {[%clk 0:02:59.4]} 2. c4 {[%clk 0:02:59]} 2...
e6 {[%clk 0:02:59.8]} 3. a3 {[%clk 0:02:57.4]} 3... d5 {[%clk 0:03:00.1]} 4. e3
{[%clk 0:02:56.9]} 4... Be7 {[%clk 0:02:59.6]} 5. Nf3 {[%clk 0:02:57.1]} 5...
O-O {[%clk 0:02:59.9]} 6. Nc3 {[%clk 0:02:56.1]} 6... b6 {[%clk 0:03:00.2]} 7.
cxd5 {[%clk 0:02:54.8]} 7... exd5 {[%clk 0:03:01.1]} 8. Bd3 {[%clk 0:02:55]}
8... c5 {[%clk 0:03:01.5]} 9. O-O {[%clk 0:02:54.6]} 9... Nc6 {[%clk 0:02:58.3]}
10. Ne5 {[%clk 0:02:44.1]} 10... Bb7 {[%clk 0:02:58.3]} 11. Nxc6 {[%clk
0:02:09.6]} 11... Bxc6 {[%clk 0:02:59.2]} 12. b3 {[%clk 0:02:10.2]} 12... Bd6
{[%clk 0:02:52.3]} 13. Bb2 {[%clk 0:02:09]} 13... Qe7 {[%clk 0:02:41.7]} 14. Rc1
{[%clk 0:01:54.2]} 14... cxd4 {[%clk 0:02:32.4]} 15. Ne2 {[%clk 0:01:49.2]}
15... Bd7 {[%clk 0:02:17.7]} 16. Bxd4 {[%clk 0:01:22.7]} 16... Bxa3 {[%clk
0:02:16.2]} 17. Rc7 {[%clk 0:01:20.4]} 17... Ne8 {[%clk 0:02:00.7]} 18. Rc2
{[%clk 0:00:33.9]} 18... Bd6 {[%clk 0:01:57.7]} 19. Ng3 {[%clk 0:00:30.2]} 19...
g6 {[%clk 0:01:54.4]} 20. Qf3 {[%clk 0:00:28.3]} 20... Be6 {[%clk 0:01:51.9]}
21. Rfc1 {[%clk 0:00:28.2]} 21... Ng7 {[%clk 0:01:47.4]} 22. e4 {[%clk
0:00:22.7]} 22... Bxg3 {[%clk 0:01:39.2]} 23. exd5 {[%clk 0:00:20.2]} 23...
Bxh2+ {[%clk 0:01:24.4]} 24. Kxh2 {[%clk 0:00:21.1]} 24... Qd6+ {[%clk
0:01:24.9]} 25. Kg1 {[%clk 0:00:20.6]} 25... Bxd5 {[%clk 0:01:25.3]} 26. Qe3
{[%clk 0:00:19]} 26... Rfe8 {[%clk 0:01:23.4]} 27. Qh6 {[%clk 0:00:18.2]} 27...
Qf8 {[%clk 0:01:14.3]} 28. Rc7 {[%clk 0:00:16.9]} 28... Ne6 {[%clk 0:01:11.1]}
29. Qxf8+ {[%clk 0:00:16.8]} 29... Rxf8 {[%clk 0:01:09.5]} 30. Rd7 {[%clk
0:00:15.4]} 30... Rfd8 {[%clk 0:01:07.1]} 31. Rxd8+ {[%clk 0:00:13.4]} 31...
Rxd8 {[%clk 0:01:08]} 32. Bf6 {[%clk 0:00:13.5]} 32... Ra8 {[%clk 0:01:05.8]}
33. b4 {[%clk 0:00:13.6]} 33... a5 {[%clk 0:01:04.8]} 34. b5 {[%clk 0:00:11.7]}
34... a4 {[%clk 0:01:04.5]} 35. Ra1 {[%clk 0:00:09.7]} 35... a3 {[%clk
0:01:04.7]} 36. Be7 {[%clk 0:00:08.4]} 36... a2 {[%clk 0:01:05.1]} 37. Kf1
{[%clk 0:00:07.9]} 37... Bxg2+ {[%clk 0:01:02]} 38. Kxg2 {[%clk 0:00:07.4]}
38... Nf4+ {[%clk 0:01:02.4]} 39. Kg3 {[%clk 0:00:05.8]} 39... Nxd3 {[%clk
0:01:03.3]} 40. Kg4 {[%clk 0:00:05.6]} 40... Nxf2+ {[%clk 0:00:59.2]} 41. Kg5
{[%clk 0:00:05.4]} 41... Ne4+ {[%clk 0:00:56.8]} 42. Kh6 {[%clk 0:00:04.8]}
42... Nc3 {[%clk 0:00:54.3]} 43. Bf6 {[%clk 0:00:04.7]} 43... Nxb5 {[%clk
0:00:54.2]} 44. Rh1 {[%clk 0:00:03.7]} 44... Nd6 {[%clk 0:00:52.4]} 45. Rh5
{[%clk 0:00:04.1]} 45... gxh5 {[%clk 0:00:51.4]} 0-1

[Event "Late-Titled-Tuesday-Blitz-October-10-2023"]
[Site "Chess.com"]
[Date "2023.10.10"]
[Round "3"]
[White "baag"]
[Black "mac0504"]
[Result "0-1"]
[WhiteElo "2848"]
[BlackElo "2572"]
[TimeControl "180+1"]
[EndTime "14:26:43 PDT"]
[Termination "mac0504 won on time"]

1. d4 {[%clk 0:02:59.7]} 1... Nf6 {[%clk 0:02:56.4]} 2. c4 {[%clk 0:03:00.4]}
2... b6 {[%clk 0:02:55.4]} 3. f3 {[%clk 0:02:59.9]} 3... e6 {[%clk 0:02:51.1]}
4. e4 {[%clk 0:02:58.2]} 4... Bb4+ {[%clk 0:02:51.2]} 5. Nc3 {[%clk 0:02:53.6]}
5... c5 {[%clk 0:02:41.8]} 6. d5 {[%clk 0:02:45.9]} 6... O-O {[%clk 0:02:38.9]}
7. Bd3 {[%clk 0:02:44.7]} 7... Bxc3+ {[%clk 0:02:09.7]} 8. bxc3 {[%clk
0:02:43.5]} 8... Nh5 {[%clk 0:01:56.8]} 9. Ne2 {[%clk 0:02:41.6]} 9... f5 {[%clk
0:01:57.5]} 10. O-O {[%clk 0:02:09]} 10... f4 {[%clk 0:01:39.3]} 11. e5 {[%clk
0:02:07]} 11... Bb7 {[%clk 0:01:19.7]} 12. Be4 {[%clk 0:02:07.1]} 12... Qg5
{[%clk 0:01:04.5]} 13. Qd3 {[%clk 0:01:57.9]} 13... Qxe5 {[%clk 0:01:01.2]} 14.
Bxh7+ {[%clk 0:01:55.4]} 14... Kh8 {[%clk 0:01:01.6]} 15. Be4 {[%clk 0:01:52]}
15... exd5 {[%clk 0:00:45.2]} 16. cxd5 {[%clk 0:01:43.3]} 16... d6 {[%clk
0:00:35.1]} 17. Bd2 {[%clk 0:01:35.8]} 17... Nd7 {[%clk 0:00:35.1]} 18. c4
{[%clk 0:01:35.8]} 18... Ndf6 {[%clk 0:00:31.1]} 19. Bc3 {[%clk 0:01:31.2]}
19... Qg5 {[%clk 0:00:31.3]} 20. Bg6 {[%clk 0:01:17]} 20... b5 {[%clk
0:00:22.9]} 21. Bxh5 {[%clk 0:00:58.2]} 21... Nxh5 {[%clk 0:00:20.4]} 22. cxb5
{[%clk 0:00:57.1]} 22... Bxd5 {[%clk 0:00:17.2]} 23. Rad1 {[%clk 0:00:55.3]}
23... Bxa2 {[%clk 0:00:17.1]} 24. Qxd6 {[%clk 0:00:39.3]} 24... Bc4 {[%clk
0:00:16.9]} 25. Rde1 {[%clk 0:00:16.2]} 25... Rad8 {[%clk 0:00:12.5]} 26. Qc7
{[%clk 0:00:10.7]} 26... Rf7 {[%clk 0:00:06.8]} 27. Qa5 {[%clk 0:00:03.4]} 27...
Re8 {[%clk 0:00:05.7]} 0-1

[Event "Late-Titled-Tuesday-Blitz-October-10-2023"]
[Site "Chess.com"]
[Date "2023.10.10"]
[Round "3"]
[White "GHANDEEVAM2003"]
[Black "FrankDux44"]
[Result "1/2-1/2"]
[WhiteElo "3042"]
[BlackElo "2647"]
[TimeControl "180+1"]
[EndTime "14:26:44 PDT"]
[Termination "Game drawn by repetition"]

1. b3 {[%clk 0:03:00.9]} 1... Nf6 {[%clk 0:02:54]} 2. Bb2 {[%clk 0:03:01]} 2...
g6 {[%clk 0:02:54.1]} 3. g3 {[%clk 0:03:00.3]} 3... Bg7 {[%clk 0:02:54]} 4. Bg2
{[%clk 0:03:01.2]} 4... O-O {[%clk 0:02:54.2]} 5. c4 {[%clk 0:03:01.1]} 5... c5
{[%clk 0:02:53.6]} 6. Nf3 {[%clk 0:02:59.7]} 6... Nc6 {[%clk 0:02:52.3]} 7. O-O
{[%clk 0:02:58.7]} 7... d6 {[%clk 0:02:50.9]} 8. d4 {[%clk 0:02:58.4]} 8... cxd4
{[%clk 0:02:50.7]} 9. Nxd4 {[%clk 0:02:59.3]} 9... Bd7 {[%clk 0:02:51.2]} 10.
Nc3 {[%clk 0:02:59.1]} 10... Nxd4 {[%clk 0:02:50]} 11. Qxd4 {[%clk 0:03:00]}
11... Bc6 {[%clk 0:02:50.4]} 12. Rad1 {[%clk 0:02:59.2]} 12... Bxg2 {[%clk
0:02:49.7]} 13. Kxg2 {[%clk 0:03:00.1]} 13... Re8 {[%clk 0:02:14.7]} 14. Nd5
{[%clk 0:02:58.1]} 14... Nh5 {[%clk 0:01:59.4]} 15. Qd2 {[%clk 0:02:56.5]} 15...
Bxb2 {[%clk 0:01:58.7]} 16. Qxb2 {[%clk 0:02:57.4]} 16... e6 {[%clk 0:01:51.3]}
17. Ne3 {[%clk 0:02:55.6]} 17... Nf6 {[%clk 0:01:43.6]} 18. Qd4 {[%clk
0:02:53.3]} 18... d5 {[%clk 0:01:34.3]} 19. cxd5 {[%clk 0:02:52.5]} 19... exd5
{[%clk 0:01:30.7]} 20. Rd2 {[%clk 0:02:51.1]} 20... Qd6 {[%clk 0:01:14.2]} 21.
Rfd1 {[%clk 0:02:45.5]} 21... Re4 {[%clk 0:01:02.1]} 22. Qb2 {[%clk 0:02:45.2]}
22... Rae8 {[%clk 0:00:54.9]} 23. Nxd5 {[%clk 0:02:37.6]} 23... Nxd5 {[%clk
0:00:54.6]} 24. Rxd5 {[%clk 0:02:38.5]} 24... Rxe2 {[%clk 0:00:52.2]} 25. Qc3
{[%clk 0:02:13.3]} 25... Qc6 {[%clk 0:00:47.9]} 26. Qf3 {[%clk 0:02:13.7]} 26...
Rxa2 {[%clk 0:00:43]} 27. b4 {[%clk 0:02:06.3]} 27... Ree2 {[%clk 0:00:41.4]}
28. Rf1 {[%clk 0:01:56.6]} 28... Red2 {[%clk 0:00:39.6]} 29. Rxd2 {[%clk
0:01:53.5]} 29... Qxf3+ {[%clk 0:00:38.7]} 30. Kxf3 {[%clk 0:01:54.4]} 30...
Rxd2 {[%clk 0:00:39]} 31. b5 {[%clk 0:01:51.7]} 31... Rb2 {[%clk 0:00:38.9]} 32.
Ra1 {[%clk 0:01:52]} 32... Rxb5 {[%clk 0:00:38.2]} 33. Rxa7 {[%clk 0:01:52.6]}
33... Kg7 {[%clk 0:00:38.2]} 34. g4 {[%clk 0:01:52.7]} 34... h5 {[%clk
0:00:38.2]} 35. h3 {[%clk 0:01:52.6]} 35... Rb3+ {[%clk 0:00:38]} 36. Kg2 {[%clk
0:01:51.5]} 36... hxg4 {[%clk 0:00:38.3]} 37. hxg4 {[%clk 0:01:52.4]} 37... b5
{[%clk 0:00:36.9]} 38. g5 {[%clk 0:01:51.5]} 38... Rb4 {[%clk 0:00:35.5]} 39.
Kg3 {[%clk 0:01:51.3]} 39... Rc4 {[%clk 0:00:35.4]} 40. Rb7 {[%clk 0:01:50.5]}
40... Rc5 {[%clk 0:00:35.8]} 41. f4 {[%clk 0:01:47.1]} 41... Rf5 {[%clk
0:00:36.4]} 42. Rb8 {[%clk 0:01:47.1]} 42... Rc5 {[%clk 0:00:32.3]} 43. Kf3
{[%clk 0:01:46.3]} 43... Rc3+ {[%clk 0:00:31.6]} 44. Kg4 {[%clk 0:01:45]} 44...
Rb3 {[%clk 0:00:31.5]} 45. Kh4 {[%clk 0:01:42.8]} 45... Rb1 {[%clk 0:00:31.6]}
46. Kg3 {[%clk 0:01:42.5]} 46... b4 {[%clk 0:00:31.9]} 47. Kf3 {[%clk
0:01:42.5]} 47... b3 {[%clk 0:00:32.1]} 48. Kg2 {[%clk 0:01:40.3]} 48... b2
{[%clk 0:00:30.8]} 49. Kh2 {[%clk 0:01:36.6]} 49... f5 {[%clk 0:00:29.9]} 50.
gxf6+ {[%clk 0:01:32.2]} 50... Kxf6 {[%clk 0:00:30.2]} 51. Kg2 {[%clk
0:01:31.6]} 51... Kf5 {[%clk 0:00:29.8]} 52. Rb4 {[%clk 0:01:32.1]} 52... Kg4
{[%clk 0:00:27.2]} 53. Rb8 {[%clk 0:01:32.1]} 53... Kxf4 {[%clk 0:00:26.7]} 54.
Rb4+ {[%clk 0:01:32.8]} 54... Kg5 {[%clk 0:00:26.7]} 55. Rb8 {[%clk 0:01:33.7]}
55... Kf5 {[%clk 0:00:24.6]} 56. Rb5+ {[%clk 0:01:32.9]} 56... Ke4 {[%clk
0:00:24.8]} 57. Rb8 {[%clk 0:01:30.9]} 57... g5 {[%clk 0:00:22.2]} 58. Re8+
{[%clk 0:01:29.7]} 58... Kd5 {[%clk 0:00:22]} 59. Rd8+ {[%clk 0:01:28.4]} 59...
Kc6 {[%clk 0:00:20.5]} 60. Rb8 {[%clk 0:01:29]} 60... g4 {[%clk 0:00:20.3]} 61.
Rb3 {[%clk 0:01:28.6]} 61... g3 {[%clk 0:00:19.4]} 62. Rb8 {[%clk 0:01:28.6]}
62... Kc5 {[%clk 0:00:19.2]} 63. Rc8+ {[%clk 0:01:28.5]} 63... Kd4 {[%clk
0:00:19.1]} 64. Rd8+ {[%clk 0:01:26.3]} 64... Ke3 {[%clk 0:00:16]} 65. Re8+
{[%clk 0:01:25.4]} 65... Kd4 {[%clk 0:00:15.6]} 66. Rd8+ {[%clk 0:01:25.7]}
66... Ke3 {[%clk 0:00:16]} 67. Re8+ {[%clk 0:01:26]} 67... Kd4 {[%clk
0:00:16.4]} 68. Rd8+ {[%clk 0:01:26.6]} 1/2-1/2

[Event "Late-Titled-Tuesday-Blitz-October-10-2023"]
[Site "Chess.com"]
[Date "2023.10.10"]
[Round "3"]
[White "DonBroca"]
[Black "komogro"]
[Result "1/2-1/2"]
[WhiteElo "2220"]
[BlackElo "2429"]
[TimeControl "180+1"]
[EndTime "14:26:47 PDT"]
[Termination "Game drawn by repetition"]

1. e4 {[%clk 0:03:00.9]} 1... g6 {[%clk 0:02:56.7]} 2. d4 {[%clk 0:02:59.6]}
2... Bg7 {[%clk 0:02:57.6]} 3. Nf3 {[%clk 0:02:59.8]} 3... d6 {[%clk 0:02:58.3]}
4. c4 {[%clk 0:02:59.9]} 4... a6 {[%clk 0:02:59.2]} 5. Nc3 {[%clk 0:02:59.5]}
5... Nc6 {[%clk 0:02:59.9]} 6. h3 {[%clk 0:02:58.8]} 6... e5 {[%clk 0:03:00.1]}
7. Be3 {[%clk 0:02:54]} 7... Nf6 {[%clk 0:02:56.5]} 8. d5 {[%clk 0:02:35.7]}
8... Ne7 {[%clk 0:02:56]} 9. Be2 {[%clk 0:02:35.9]} 9... Nh5 {[%clk 0:02:55.4]}
10. Qd2 {[%clk 0:02:20.9]} 10... O-O {[%clk 0:02:49.5]} 11. g3 {[%clk
0:01:52.5]} 11... f5 {[%clk 0:02:41.9]} 12. Bh6 {[%clk 0:01:47.5]} 12... f4
{[%clk 0:02:41.3]} 13. Bxg7 {[%clk 0:01:45]} 13... Kxg7 {[%clk 0:02:39.7]} 14.
g4 {[%clk 0:01:44.8]} 14... Nf6 {[%clk 0:02:39.7]} 15. O-O-O {[%clk 0:01:20.5]}
15... b5 {[%clk 0:02:39.7]} 16. Bd3 {[%clk 0:01:06.9]} 16... Rb8 {[%clk
0:02:30.3]} 17. Rde1 {[%clk 0:01:00.9]} 17... c5 {[%clk 0:02:30.3]} 18. cxb5
{[%clk 0:00:53.5]} 18... axb5 {[%clk 0:02:29.5]} 19. Bxb5 {[%clk 0:00:54.4]}
19... Qa5 {[%clk 0:02:28.9]} 20. a4 {[%clk 0:00:53.9]} 20... Ba6 {[%clk
0:02:28]} 21. b3 {[%clk 0:00:51.7]} 21... Nc8 {[%clk 0:02:15.5]} 22. Ng5 {[%clk
0:00:38.5]} 22... Bxb5 {[%clk 0:01:41.7]} 23. Nxb5 {[%clk 0:00:36.1]} 23... Rxb5
{[%clk 0:01:41.7]} 24. axb5 {[%clk 0:00:33.3]} 24... Qa1+ {[%clk 0:01:41.4]} 25.
Kc2 {[%clk 0:00:33.3]} 25... Qa2+ {[%clk 0:01:42]} 26. Kc3 {[%clk 0:00:23.7]}
26... Qa5+ {[%clk 0:01:41.7]} 27. Kb2 {[%clk 0:00:22.8]} 27... Qxb5 {[%clk
0:01:41.4]} 28. Ne6+ {[%clk 0:00:21.1]} 28... Kf7 {[%clk 0:01:41.4]} 29. Nxf8
{[%clk 0:00:21.7]} 29... Nb6 {[%clk 0:01:41.2]} 30. Ne6 {[%clk 0:00:20.4]} 30...
Nc4+ {[%clk 0:01:41]} 31. Kc3 {[%clk 0:00:20.9]} 31... Qb4+ {[%clk 0:01:39.8]}
32. Kd3 {[%clk 0:00:17]} 32... Qxd2+ {[%clk 0:01:35.1]} 33. Kxc4 {[%clk
0:00:15.1]} 33... Qc2+ {[%clk 0:01:35.7]} 34. Kb5 {[%clk 0:00:12.9]} 34... Qxb3+
{[%clk 0:01:35.8]} 35. Kc6 {[%clk 0:00:13.8]} 35... Ke7 {[%clk 0:01:33.2]} 36.
Rb1 {[%clk 0:00:13.8]} 36... Qa4+ {[%clk 0:01:33.4]} 37. Rb5 {[%clk 0:00:13.9]}
37... Nd7 {[%clk 0:01:30.6]} 38. Rb1 {[%clk 0:00:13.8]} 38... c4 {[%clk
0:01:26.8]} 39. Kc7 {[%clk 0:00:12.1]} 39... c3 {[%clk 0:01:24.8]} 40. Rb7
{[%clk 0:00:11.1]} 40... c2 {[%clk 0:01:24.3]} 41. Rc1 {[%clk 0:00:10.7]} 41...
Qa5+ {[%clk 0:01:22.9]} 42. Kc8 {[%clk 0:00:10.3]} 42... Qd2 {[%clk 0:01:18.7]}
43. Rxd7+ {[%clk 0:00:08.5]} 43... Ke8 {[%clk 0:01:13.9]} 44. Rd8+ {[%clk
0:00:06.6]} 44... Kf7 {[%clk 0:01:12.4]} 45. Rd7+ {[%clk 0:00:07.2]} 45... Kg8
{[%clk 0:01:11]} 46. Rd8+ {[%clk 0:00:05.6]} 46... Kf7 {[%clk 0:01:11.2]} 47.
Rd7+ {[%clk 0:00:06.3]} 47... Ke8 {[%clk 0:01:10.6]} 48. Rd8+ {[%clk 0:00:02.1]}
48... Ke7 {[%clk 0:01:10.7]} 49. Rd7+ {[%clk 0:00:03]} 49... Ke8 {[%clk
0:01:09.7]} 1/2-1/2

[Event "Late-Titled-Tuesday-Blitz-October-10-2023"]
[Site "Chess.com"]
[Date "2023.10.10"]
[Round "3"]
[White "WPWPWP-2015"]
[Black "Ishowmoves57"]
[Result "1-0"]
[WhiteElo "2525"]
[BlackElo "2167"]
[TimeControl "180+1"]
[EndTime "14:26:51 PDT"]
[Termination "WPWPWP-2015 won by resignation"]

1. d4 {[%clk 0:03:00.9]} 1... Nf6 {[%clk 0:02:59.6]} 2. c4 {[%clk 0:03:00.4]}
2... e6 {[%clk 0:02:59.4]} 3. Nf3 {[%clk 0:03:00.4]} 3... d5 {[%clk 0:02:58.1]}
4. Nc3 {[%clk 0:02:59.8]} 4... Bb4 {[%clk 0:02:58.3]} 5. Qc2 {[%clk 0:02:54.1]}
5... O-O {[%clk 0:02:52.4]} 6. Bf4 {[%clk 0:02:50.6]} 6... c6 {[%clk 0:02:49.6]}
7. e3 {[%clk 0:02:50.2]} 7... Ne4 {[%clk 0:02:44.1]} 8. Bd3 {[%clk 0:02:48.1]}
8... Qa5 {[%clk 0:02:42.9]} 9. Bxe4 {[%clk 0:02:44.9]} 9... dxe4 {[%clk
0:02:39.2]} 10. Nd2 {[%clk 0:02:44.8]} 10... f5 {[%clk 0:02:37.7]} 11. O-O
{[%clk 0:02:40.8]} 11... Nd7 {[%clk 0:02:30.8]} 12. c5 {[%clk 0:02:32.8]} 12...
Qd8 {[%clk 0:02:18.6]} 13. Bd6 {[%clk 0:02:30.2]} 13... Re8 {[%clk 0:02:17.4]}
14. Nc4 {[%clk 0:02:27.3]} 14... Nf6 {[%clk 0:02:08.9]} 15. Ne2 {[%clk
0:02:24.3]} 15... Ba5 {[%clk 0:01:59.2]} 16. f4 {[%clk 0:02:19.3]} 16... Nd5
{[%clk 0:01:56.3]} 17. Qb3 {[%clk 0:02:08.2]} 17... b5 {[%clk 0:01:44.3]} 18.
Ne5 {[%clk 0:02:05.2]} 18... Bd7 {[%clk 0:01:38.8]} 19. g3 {[%clk 0:01:59.3]}
19... Bc7 {[%clk 0:01:38.2]} 20. Rac1 {[%clk 0:01:44.7]} 20... Bxd6 {[%clk
0:01:36.2]} 21. cxd6 {[%clk 0:01:44.4]} 21... Rc8 {[%clk 0:01:27.1]} 22. a4
{[%clk 0:01:43]} 22... Rf8 {[%clk 0:01:20.7]} 23. axb5 {[%clk 0:01:39.8]} 23...
cxb5 {[%clk 0:01:21.6]} 24. Ra1 {[%clk 0:01:26.3]} 24... a5 {[%clk 0:01:16.2]}
25. Kf2 {[%clk 0:00:58.5]} 25... a4 {[%clk 0:01:13.6]} 26. Qd1 {[%clk
0:00:56.9]} 26... Be8 {[%clk 0:01:09.4]} 27. Rc1 {[%clk 0:00:52.6]} 27... Rxc1
{[%clk 0:01:06.1]} 28. Qxc1 {[%clk 0:00:52.7]} 28... Qxd6 {[%clk 0:01:05.5]} 29.
Qc5 {[%clk 0:00:51.1]} 29... Qe7 {[%clk 0:00:41.3]} 30. Rc1 {[%clk 0:00:48.1]}
30... Bf7 {[%clk 0:00:38.2]} 31. Qxe7 {[%clk 0:00:36.1]} 31... Nxe7 {[%clk
0:00:39.1]} 32. Rc7 {[%clk 0:00:35.9]} 32... Nd5 {[%clk 0:00:36.5]} 33. Rb7
{[%clk 0:00:35.5]} 33... Be8 {[%clk 0:00:35.1]} 34. Nc1 {[%clk 0:00:26.2]} 34...
b4 {[%clk 0:00:34]} 35. Na2 {[%clk 0:00:23.2]} 35... Bc6 {[%clk 0:00:31.1]} 36.
Nxc6 {[%clk 0:00:22.1]} 36... b3 {[%clk 0:00:26]} 37. Nab4 {[%clk 0:00:17.7]}
37... a3 {[%clk 0:00:24.8]} 38. bxa3 {[%clk 0:00:17.5]} 38... Nxb4 {[%clk
0:00:23.6]} 39. Rxb4 {[%clk 0:00:17.2]} 39... Rc8 {[%clk 0:00:22.7]} 40. Ne7+
{[%clk 0:00:17.2]} 40... Kf7 {[%clk 0:00:22.3]} 41. Nxc8 {[%clk 0:00:17.4]}
41... Kf6 {[%clk 0:00:22.5]} 42. Nd6 {[%clk 0:00:17.1]} 1-0

[Event "Late-Titled-Tuesday-Blitz-October-10-2023"]
[Site "Chess.com"]
[Date "2023.10.10"]
[Round "3"]
[White "TanitoluwaAps116"]
[Black "jcibarra"]
[Result "1-0"]
[WhiteElo "2701"]
[BlackElo "2896"]
[TimeControl "180+1"]
[EndTime "14:26:55 PDT"]
[Termination "TanitoluwaAps116 won by resignation"]

1. e4 {[%clk 0:02:37.2]} 1... c5 {[%clk 0:02:58.5]} 2. Nf3 {[%clk 0:02:35.8]}
2... Nc6 {[%clk 0:02:58.9]} 3. Bb5 {[%clk 0:02:33.3]} 3... e6 {[%clk 0:02:58]}
4. Bxc6 {[%clk 0:02:33.5]} 4... bxc6 {[%clk 0:02:57.9]} 5. b3 {[%clk 0:02:34.2]}
5... d6 {[%clk 0:02:54.3]} 6. e5 {[%clk 0:02:33.5]} 6... f6 {[%clk 0:02:50.9]}
7. exd6 {[%clk 0:02:16.6]} 7... Bxd6 {[%clk 0:02:49.2]} 8. O-O {[%clk
0:02:16.5]} 8... e5 {[%clk 0:02:48.4]} 9. Nc3 {[%clk 0:02:16.5]} 9... Ne7 {[%clk
0:02:45.2]} 10. Ne4 {[%clk 0:02:16.7]} 10... O-O {[%clk 0:02:39.9]} 11. Ba3
{[%clk 0:02:14.2]} 11... Ng6 {[%clk 0:02:40.2]} 12. c3 {[%clk 0:01:44.1]} 12...
f5 {[%clk 0:02:36.5]} 13. Nxd6 {[%clk 0:01:42.5]} 13... Qxd6 {[%clk 0:02:36.3]}
14. d4 {[%clk 0:01:42.6]} 14... e4 {[%clk 0:02:27.3]} 15. Bxc5 {[%clk
0:01:27.3]} 15... Qf6 {[%clk 0:02:27.5]} 16. Bxf8 {[%clk 0:00:54.6]} 16... exf3
{[%clk 0:02:27]} 17. Bc5 {[%clk 0:00:53.7]} 17... fxg2 {[%clk 0:02:22.1]} 18.
Re1 {[%clk 0:00:52.6]} 18... Be6 {[%clk 0:02:17.7]} 19. c4 {[%clk 0:00:43.4]}
19... Nf4 {[%clk 0:01:43.7]} 20. Qf3 {[%clk 0:00:37.8]} 20... Qh6 {[%clk
0:01:44]} 21. Re3 {[%clk 0:00:25.3]} 21... Bf7 {[%clk 0:01:41]} 22. Rae1 {[%clk
0:00:19.9]} 22... Bh5 {[%clk 0:01:28.9]} 23. Qg3 {[%clk 0:00:17.3]} 23... g5
{[%clk 0:01:19.9]} 24. Re5 {[%clk 0:00:06.9]} 24... Bg4 {[%clk 0:01:17.5]} 25.
Re8+ {[%clk 0:00:04.9]} 25... Rxe8 {[%clk 0:01:17.3]} 26. Rxe8+ {[%clk
0:00:05.8]} 26... Kf7 {[%clk 0:01:18.1]} 27. Re7+ {[%clk 0:00:05.4]} 27... Kf6
{[%clk 0:01:11.3]} 28. Qe3 {[%clk 0:00:04.4]} 28... Kg6 {[%clk 0:00:51.5]} 29.
Bd6 {[%clk 0:00:04.4]} 29... Kh5 {[%clk 0:00:37.5]} 30. Bxf4 {[%clk 0:00:03.9]}
30... gxf4 {[%clk 0:00:37.7]} 31. Qe6 {[%clk 0:00:03.8]} 31... Qg6 {[%clk
0:00:16.2]} 32. Qxg6+ {[%clk 0:00:03.2]} 32... hxg6 {[%clk 0:00:16.4]} 33. d5
{[%clk 0:00:03.8]} 33... cxd5 {[%clk 0:00:16]} 34. cxd5 {[%clk 0:00:04.7]} 34...
Bf3 {[%clk 0:00:11.9]} 35. d6 {[%clk 0:00:05.6]} 35... Bc6 {[%clk 0:00:12.3]}
36. d7 {[%clk 0:00:05.6]} 1-0

[Event "Late-Titled-Tuesday-Blitz-October-10-2023"]
[Site "Chess.com"]
[Date "2023.10.10"]
[Round "3"]
[White "cthulhuuu"]
[Black "Cayse"]
[Result "0-1"]
[WhiteElo "2468"]
[BlackElo "2858"]
[TimeControl "180+1"]
[EndTime "14:26:57 PDT"]
[Termination "Cayse won by resignation"]

1. e4 {[%clk 0:03:00]} 1... e5 {[%clk 0:02:59.7]} 2. Nf3 {[%clk 0:03:00]} 2...
Nc6 {[%clk 0:02:59.6]} 3. Bb5 {[%clk 0:03:00]} 3... a6 {[%clk 0:02:59.5]} 4.
Bxc6 {[%clk 0:03:00.7]} 4... dxc6 {[%clk 0:03:00.4]} 5. O-O {[%clk 0:03:01.1]}
5... Bg4 {[%clk 0:02:59.4]} 6. h3 {[%clk 0:03:01.5]} 6... h5 {[%clk 0:02:59.7]}
7. d3 {[%clk 0:03:01.2]} 7... Qf6 {[%clk 0:02:59.5]} 8. Nbd2 {[%clk 0:03:01.8]}
8... Bd6 {[%clk 0:02:57.2]} 9. Re1 {[%clk 0:03:01.6]} 9... Ne7 {[%clk
0:02:55.9]} 10. d4 {[%clk 0:02:59.4]} 10... Ng6 {[%clk 0:02:48.5]} 11. hxg4
{[%clk 0:02:58.7]} 11... hxg4 {[%clk 0:02:48.5]} 12. Nh2 {[%clk 0:02:59.1]}
12... Rxh2 {[%clk 0:02:48.5]} 13. Qxg4 {[%clk 0:02:54.5]} 13... Rh4 {[%clk
0:02:48.4]} 14. Qg3 {[%clk 0:02:55.2]} 14... exd4 {[%clk 0:01:33.9]} 15. e5
{[%clk 0:02:54.7]} 15... Qe6 {[%clk 0:01:33.9]} 16. Nf3 {[%clk 0:02:47.1]} 16...
Be7 {[%clk 0:01:26.4]} 17. Nxh4 {[%clk 0:02:35.1]} 17... Bxh4 {[%clk 0:01:24.1]}
18. Qh3 {[%clk 0:02:23.8]} 18... Qxh3 {[%clk 0:01:23.3]} 19. gxh3 {[%clk
0:02:24.7]} 19... O-O-O {[%clk 0:01:22.3]} 20. Re4 {[%clk 0:02:17.8]} 20... c5
{[%clk 0:01:16.4]} 21. f4 {[%clk 0:02:11.9]} 21... Ne7 {[%clk 0:01:15.2]} 22.
Bd2 {[%clk 0:02:05.8]} 22... Nf5 {[%clk 0:01:11.4]} 23. e6 {[%clk 0:01:22.8]}
23... Nd6 {[%clk 0:01:11]} 24. Re2 {[%clk 0:01:17.5]} 24... fxe6 {[%clk
0:01:10.6]} 25. Rxe6 {[%clk 0:01:17]} 25... Nc4 {[%clk 0:01:10.6]} 26. Bc1
{[%clk 0:01:12.2]} 26... d3 {[%clk 0:01:01.7]} 27. cxd3 {[%clk 0:01:00.8]} 27...
Rxd3 {[%clk 0:01:02.6]} 28. b3 {[%clk 0:00:49.4]} 28... Rd1+ {[%clk 0:01:00.2]}
29. Kg2 {[%clk 0:00:49.6]} 29... Nd6 {[%clk 0:00:59.9]} 30. Kf3 {[%clk 0:00:50]}
30... Bf6 {[%clk 0:00:56.4]} 31. Rxf6 {[%clk 0:00:46.4]} 31... gxf6 {[%clk
0:00:55.5]} 32. Bb2 {[%clk 0:00:47.3]} 32... Rd3+ {[%clk 0:00:54.4]} 33. Ke2
{[%clk 0:00:24.6]} 33... Rxh3 {[%clk 0:00:52.8]} 34. Bxf6 {[%clk 0:00:25.1]}
34... b5 {[%clk 0:00:46.3]} 35. Rg1 {[%clk 0:00:24.8]} 35... Rh2+ {[%clk
0:00:44.5]} 36. Kf3 {[%clk 0:00:24.6]} 36... Rxa2 {[%clk 0:00:44.6]} 37. Be5
{[%clk 0:00:25.4]} 37... Ra3 {[%clk 0:00:43.8]} 38. Rg7 {[%clk 0:00:22.1]} 38...
Rxb3+ {[%clk 0:00:42.9]} 39. Kg4 {[%clk 0:00:22.9]} 39... Rb1 {[%clk 0:00:38.8]}
40. f5 {[%clk 0:00:19]} 40... Rg1+ {[%clk 0:00:37.8]} 41. Bg3 {[%clk 0:00:19.9]}
41... Rxg3+ {[%clk 0:00:37.3]} 42. Kxg3 {[%clk 0:00:13.4]} 42... Nxf5+ {[%clk
0:00:36.8]} 43. Kf4 {[%clk 0:00:14.2]} 43... Nxg7 {[%clk 0:00:37.7]} 0-1